bitfinex/quotes_SOLUSD_20241111
["timestamp","ask_amount","ask_price","bid_price","bid_amount"]
[1731318963728,17.69085211,210.66,210.65,11.8674]
[1731318964031,17.69085211,210.66,210.6,16.6191]
[1731318964329,17.69085211,210.67,210.6,34.30995211]
[1731318964555,17.69085211,210.68,210.6,34.30995211]
[1731318964729,17.69085211,210.67,210.6,16.6191]
[1731318965107,17.69085211,210.68,210.6,34.30995211]
[1731318965315,17.69085211,210.7,210.63,17.69085211]
[1731318965548,17.69085211,210.71,210.63,17.69085211]
[1731318965716,17.69085211,210.7,210.63,17.69085211]
[1731318966231,17.69085211,210.7,210.62,17.69085211]
[1731318966429,17.69085211,210.72,210.65,17.69085211]
[1731318966607,17.69085211,210.74,210.66,17.69085211]
[1731318967325,16.148,210.81,210.66,17.69085211]
[1731318967326,17.69085211,210.76,210.69,17.69085211]
[1731318967624,17.69085211,210.77,210.69,17.69085211]
[1731318968438,17.69085211,210.77,210.7,16.6112]
[1731318968819,11.31240879,210.77,210.7,16.6112]
[1731318969311,11.31240879,210.79,210.71,11.31240879]
[1731318970220,4.7422,210.88,210.77,11.31240879]
[1731318970432,11.31240879,210.86,210.79,16.6041]
[1731318970617,11.31240879,210.85,210.79,16.6041]
[1731318970818,11.31240879,210.84,210.79,16.6041]
[1731318971237,11.31240879,210.83,210.79,16.6041]
[1731318971816,11.31240879,210.83,210.79,11.8601]
[1731318972545,11.31240879,210.84,210.79,11.8601]
[1731318974840,11.31240879,210.82,210.79,11.8601]
[1731318975511,21.1979,210.91,210.79,11.8601]
[1731318975714,11.31240879,210.85,210.79,11.8601]
[1731318975934,11.31240879,210.84,210.79,11.8601]
[1731318978737,11.31240879,210.82,210.79,11.8601]
[1731318979118,11.31240879,210.81,210.79,11.8601]
[1731318980637,11.31240879,210.82,210.79,11.8601]
[1731318982243,11.31240879,210.8,210.76,4.7447]
[1731318982624,16.4565,210.91,210.78,11.31240879]
[1731318982830,11.31240879,210.87,210.78,11.31240879]
[1731318983025,11.31240879,210.85,210.78,11.31240879]
[1731318983835,11.31240879,210.85,210.76,57.54613202]
[1731318985140,11.31240879,210.78,210.76,17.76542323]
[1731318985321,11.31240879,210.78,210.74,4.745]
[1731318985640,11.31240879,210.75,210.71,16.61]
[1731318986219,11.31240879,210.77,210.71,16.61]
[1731318986939,17.67525338,210.77,210.71,16.61]
[1731318987941,17.67525338,210.79,210.71,34.28525338]
[1731318989647,17.67525338,210.81,210.73,17.67525338]
[1731318989837,17.67525338,210.83,210.75,17.67525338]
[1731318990746,17.67525338,210.83,210.75,23.776884]
[1731318990953,16.2542,210.98,210.79,6.2513]
[1731318991124,16.2542,210.98,210.88,17.67525338]
[1731318991449,17.67525338,210.95,210.88,17.67525338]
[1731318991644,25.83279965,211.04,210.82,0.1]
[1731318991828,2.47159939,211.04,210.93,17.67525338]
[1731318992026,20.14685277,211.04,210.94,26.94151434]
[1731318992240,17.67525338,211.02,210.94,26.94151434]
[1731318992441,17.67525338,211.0,210.94,21.4352]
[1731318992832,17.67525338,210.98,210.94,21.4352]
[1731318993036,17.67525338,210.98,210.95,4.7404]
[1731318994231,17.67525338,210.99,210.95,4.7404]
[1731318994424,17.67525338,211.0,210.95,16.5915]
[1731318994837,17.67525338,210.98,210.95,16.5915]
[1731318995042,17.67525338,211.0,210.95,16.5915]
[1731318995230,17.67525338,211.01,210.95,16.5915]
[1731318997850,17.67525338,210.99,210.95,16.5915]
[1731318998029,17.67525338,211.0,210.95,16.5915]
[1731318998453,17.67525338,211.01,210.95,16.5915]
[1731318998946,17.67525338,210.98,210.95,16.5915]
[1731318999453,17.67525338,210.99,210.95,16.5915]
[1731318999647,17.67525338,210.98,210.95,16.5915]
[1731319000153,17.67525338,210.99,210.95,16.5915]
[1731319000536,4.7378,211.07,210.95,16.5915]
[1731319000537,17.67525338,211.01,210.95,16.5915]
[1731319000947,17.67525338,211.02,210.95,16.5915]
[1731319003129,17.67525338,211.02,210.95,34.26675338]
[1731319003534,17.67525338,211.01,210.95,16.5915]
[1731319004259,17.67525338,210.98,210.95,16.5915]
[1731319004568,17.67525338,210.99,210.95,16.5915]
[1731319004737,17.67525338,211.0,210.95,16.5915]
[1731319005735,17.67525338,211.01,210.95,16.5915]
[1731319007156,17.67525338,210.97,210.94,15.064]
[1731319007459,17.67525338,210.99,210.94,19.8045]
[1731319008357,17.67525338,210.99,210.94,31.6562]
[1731319008664,17.67525338,210.98,210.94,31.6562]
[1731319009154,17.67525338,210.95,210.94,11.8517]
[1731319009338,23.776884,211.03,210.94,11.8517]
[1731319009540,17.67525338,210.95,210.94,11.8517]
[1731319010261,17.67525338,210.95,210.9,4.7415]
[1731319010450,17.67525338,210.95,210.9,16.5954]
[1731319011355,17.67525338,210.94,210.9,16.5954]
[1731319012642,17.67525338,210.95,210.9,16.5954]
[1731319012857,17.67525338,210.94,210.9,16.5954]
[1731319013062,17.67525338,210.92,210.85,32.9533]
[1731319014441,17.67525338,210.92,210.85,50.62855338]
[1731319016068,17.67525338,210.92,210.85,32.9533]
[1731319016571,16.6097,211.01,210.85,32.9533]
[1731319016572,17.67525338,210.87,210.85,32.9533]
[1731319016870,17.67525338,210.86,210.85,16.5994]
[1731319017468,17.67525338,210.86,210.8,15.5081]
[1731319017645,17.67525338,210.86,210.81,16.6026]
[1731319019360,21.55287745,211.01,210.85,17.67525338]
[1731319019558,21.55287745,211.01,210.82,23.876884]
[1731319019559,17.67525338,210.95,210.88,17.67525338]
[1731319020570,17.67525338,210.97,210.89,34.27155338]
[1731319021449,15.3341,211.06,210.94,17.67525338]
[1731319021668,17.67525338,211.02,210.94,17.67525338]
[1731319021846,17.67525338,211.0,210.93,17.67525338]
[1731319022558,17.67525338,211.02,210.94,16.5923]
[1731319024749,17.67525338,211.01,210.94,29.52695338]
[1731319024971,17.67525338,211.02,210.95,17.67525338]
[1731319025149,17.67525338,211.01,210.94,11.8517]
[1731319025548,17.67525338,211.02,210.95,17.67525338]
[1731319025755,17.67525338,211.03,210.96,17.67525338]
[1731319026984,17.67525338,211.03,210.97,16.59]
[1731319029174,17.67525338,211.03,210.96,17.67525338]
[1731319029356,23.776884,211.07,210.92,40.2995]
[1731319029357,17.67525338,211.02,210.92,40.2995]
[1731319029686,17.67525338,211.02,210.95,17.67525338]
[1731319030170,17.67525338,211.02,210.92,40.2995]
[1731319030171,17.67525338,210.97,210.92,16.5939]
[1731319031154,17.67525338,210.96,210.92,16.5939]
[1731319031378,4.7392,211.01,210.82,0.1]
[1731319031379,17.67525338,210.93,210.87,11.8552]
[1731319031585,17.67525338,210.9,210.87,11.8552]
[1731319031879,17.67525338,210.88,210.87,11.8552]
[1731319032277,17.67525338,210.88,210.85,4.7425]
[1731319032659,17.67525338,210.87,210.82,11.858]
[1731319032865,17.67525338,210.87,210.82,16.6013]
[1731319033480,17.67525338,210.91,210.83,17.67525338]
[1731319033954,17.67525338,210.92,210.85,17.67525338]
[1731319034371,17.67525338,210.93,210.86,17.67525338]
[1731319034566,4.7394,211.0,210.88,17.67525338]
[1731319034774,17.67525338,210.96,210.89,17.67525338]
[1731319035085,17.67525338,210.98,210.9,17.67525338]
[1731319035263,17.67525338,210.98,210.91,34.26985338]
[1731319036493,17.67525338,210.99,210.92,17.67525338]
[1731319036663,17.67525338,210.98,210.91,34.26985338]
[1731319037379,17.67525338,210.98,210.91,16.5946]
[1731319038074,16.0052,211.02,210.89,15.1902]
[1731319038075,17.67525338,211.02,210.94,17.67525338]
[1731319038287,17.67525338,210.99,210.93,16.5931]
[1731319038467,33.92232581,211.08,210.93,16.5931]
[1731319038666,17.67525338,210.98,210.93,16.5931]
[1731319039468,23.776884,211.05,210.94,17.67525338]
[1731319039679,17.67525338,211.0,210.93,34.26835338]
[1731319039872,17.67525338,210.99,210.93,16.5931]
[1731319040284,17.67525338,210.98,210.93,16.5931]
[1731319040481,17.67525338,210.96,210.93,16.5931]
[1731319041169,17.67525338,210.95,210.93,16.5931]
[1731319041377,17.67525338,210.94,210.93,11.8522]
[1731319041686,17.67525338,210.94,210.88,16.5964]
[1731319041986,17.67525338,210.91,210.88,16.5964]
[1731319042486,17.67525338,210.91,210.88,11.8546]
[1731319042693,17.67525338,210.92,210.88,11.8546]
[1731319042871,17.67525338,210.93,210.88,11.8546]
[1731319043783,4.739,211.02,210.88,29.52985338]
[1731319043973,17.67525338,211.0,210.92,17.67525338]
[1731319044273,17.67525338,210.99,210.92,17.67525338]
[1731319044590,17.67525338,210.98,210.93,16.5931]
[1731319044971,17.67525338,211.0,210.93,34.26835338]
[1731319045279,4.7375,211.08,210.96,17.67525338]
[1731319045479,4.7375,211.08,210.95,17.67525338]
[1731319045678,17.67525338,211.03,210.95,17.67525338]
[1731319045996,17.67525338,211.02,210.95,17.67525338]
[1731319046491,17.67525338,211.02,210.96,16.5907]
[1731319046977,17.67525338,211.01,210.96,16.5907]
[1731319047165,17.67525338,210.98,210.96,11.8505]
[1731319047373,17.67525338,211.02,210.96,16.5907]
[1731319049180,23.776884,211.09,210.96,16.5907]
[1731319049487,17.67525338,211.02,210.96,16.5907]
[1731319051977,17.67525338,211.01,210.96,16.5907]
[1731319052181,17.67525338,210.99,210.96,16.5907]
[1731319052381,17.67525338,211.01,210.96,16.5907]
[1731319053973,4.7376,211.08,210.96,34.26595338]
[1731319054173,17.67525338,211.03,210.96,34.26595338]
[1731319054883,17.67525338,211.04,210.97,17.67525338]
[1731319055085,17.67525338,211.04,210.98,16.5891]
[1731319055289,17.67525338,211.03,210.98,16.5891]
[1731319055888,17.67525338,211.0,210.98,16.5891]
[1731319056191,17.67525338,210.99,210.98,11.8494]
[1731319056578,17.67525338,210.99,210.95,4.7403]
[1731319056782,17.67525338,210.96,210.91,30.2539]
[1731319056975,17.67525338,210.94,210.93,4.7407]
[1731319057173,17.67525338,210.94,210.91,23.706]
[1731319057400,17.67525338,210.95,210.92,11.8528]
[1731319057692,17.67525338,210.96,210.92,11.8528]
[1731319058287,4.739,211.02,210.92,11.8528]
[1731319058588,17.67525338,210.96,210.92,11.8528]
[1731319059680,17.67525338,210.95,210.92,11.8528]
[1731319060202,17.67525338,210.97,210.92,11.8528]
[1731319061888,17.67525338,210.96,210.92,11.8528]
[1731319062090,17.67525338,210.96,210.92,11.17785444]
[1731319062873,17.67525338,210.94,210.86,6.2856]
[1731319063078,17.67525338,210.94,210.87,16.5976]
[1731319065381,17.67525338,210.94,210.87,34.27285338]
[1731319065589,17.67525338,210.93,210.87,16.5976]
[1731319067893,17.67525338,210.94,210.87,34.27285338]
[1731319068095,17.67525338,210.95,210.89,16.5963]
[1731319068390,4.7398,210.98,210.89,16.5963]
[1731319068391,17.67525338,210.94,210.89,16.5963]
[1731319069898,17.67525338,210.93,210.89,11.8545]
[1731319071491,17.67525338,210.92,210.89,11.8545]
[1731319072510,17.67525338,210.91,210.89,11.8545]
[1731319073203,17.67525338,210.93,210.89,11.8545]
[1731319073590,17.67525338,210.92,210.89,11.8545]
[1731319074305,17.67525338,210.93,210.89,11.8545]
[1731319075505,17.67525338,210.92,210.89,11.8545]
[1731319075905,17.67525338,210.93,210.89,11.8545]
[1731319076612,17.67525338,210.92,210.89,11.8545]
[1731319077812,4.80637243,210.99,210.89,11.8545]
[1731319078114,17.67525338,210.93,210.89,11.8545]
[1731319078310,17.67525338,210.92,210.89,11.8545]
[1731319079207,17.67525338,210.91,210.89,11.8545]
[1731319079603,17.67525338,210.92,210.89,11.8545]
[1731319080512,2.21708329,211.05,210.89,11.8545]
[1731319080710,4.7383,211.05,210.92,17.67525338]
[1731319080911,11.2880917,211.0,210.92,11.2880917]
[1731319081109,11.2880917,211.02,210.95,11.2880917]
[1731319081299,11.2880917,211.03,210.95,11.2880917]
[1731319081807,11.2880917,211.02,210.95,11.2880917]
[1731319082009,11.2880917,211.01,210.94,11.2880917]
[1731319082400,11.2880917,211.01,210.95,16.5915]
[1731319082811,17.6374712,211.0,210.95,16.5915]
[1731319082992,17.6374712,210.99,210.95,16.5915]
[1731319083192,17.6374712,210.98,210.95,16.5915]
[1731319083791,17.6374712,210.99,210.95,11.8511]
[1731319085416,17.6374712,210.98,210.95,11.8511]
[1731319085592,17.6374712,210.97,210.95,11.8511]
[1731319086393,17.6374712,210.96,210.95,11.8511]
[1731319086593,17.6374712,210.96,210.93,4.7409]
[1731319086797,17.6374712,210.96,210.91,27.3276]
[1731319086798,17.6374712,210.94,210.91,32.0688]
[1731319086999,17.6374712,210.93,210.91,11.8533]
[1731319087613,17.6374712,210.94,210.91,16.5946]
[1731319087807,17.6374712,210.93,210.91,16.5946]
[1731319088512,17.6374712,210.93,210.87,16.5978]
[1731319088713,17.6374712,210.95,210.88,41.4143552]
[1731319089209,17.6374712,210.95,210.88,23.776884]
[1731319089915,4.7394,211.0,210.88,23.776884]
[1731319090212,17.6374712,210.93,210.89,16.5963]
[1731319090394,17.6374712,210.94,210.89,16.5963]
[1731319091017,17.6374712,210.94,210.89,11.8545]
[1731319091316,17.6374712,210.93,210.89,11.8545]
[1731319091817,17.6374712,210.9,210.89,11.8545]
[1731319091995,17.6374712,210.9,210.87,4.7422]
[1731319093021,17.6374712,210.96,210.84,11.8567]
[1731319093022,17.6374712,210.88,210.84,11.8567]
[1731319093226,17.6374712,210.86,210.84,11.8567]
[1731319093399,17.6374712,210.87,210.84,16.5996]
[1731319093606,17.6374712,210.89,210.84,16.5996]
[1731319093925,17.6374712,210.9,210.84,16.5996]
[1731319094218,17.6374712,210.92,210.84,34.2370712]
[1731319094413,17.6374712,210.92,210.85,41.4143552]
[1731319094610,17.6374712,210.92,210.85,23.776884]
[1731319095303,17.6374712,210.92,210.86,16.5986]
[1731319095931,17.6374712,210.9,210.86,16.5986]
[1731319096297,17.6374712,210.91,210.86,16.5986]
[1731319096607,17.6374712,210.89,210.86,16.5986]
[1731319097108,17.6374712,210.9,210.86,16.5986]
[1731319097299,17.6374712,210.89,210.86,16.5986]
[1731319097504,17.6374712,210.9,210.86,16.5986]
[1731319098403,17.6374712,210.9,210.86,11.8562]
[1731319098610,17.6374712,210.91,210.86,11.8562]
[1731319099642,17.6374712,210.93,210.86,11.8562]
[1731319100222,17.6374712,210.93,210.87,23.776884]
[1731319100422,17.6374712,210.93,210.86,11.8562]
[1731319101122,4.7402,210.96,210.86,11.8562]
[1731319101123,17.6374712,210.89,210.86,11.8562]
[1731319101505,17.6374712,210.91,210.84,23.7146]
[1731319102926,17.6374712,210.91,210.84,40.3148]
[1731319103711,17.6374712,210.89,210.84,40.3148]
[1731319104111,17.6374712,210.89,210.84,16.6002]
[1731319104931,11.30041618,210.89,210.84,11.8573]
[1731319105924,11.30041618,210.87,210.84,11.8573]
[1731319106627,11.30041618,210.89,210.84,11.8573]
[1731319106830,11.30041618,210.91,210.84,11.8573]
[1731319107030,11.30041618,210.91,210.84,23.15771618]
[1731319107224,11.30041618,210.92,210.84,11.8573]
[1731319107410,11.30041618,210.9,210.84,11.8573]
[1731319108405,11.30041618,210.9,210.84,16.6002]
[1731319108610,11.30041618,210.88,210.84,11.8573]
[1731319108909,17.66062909,210.86,210.84,11.8573]
[1731319109404,17.66062909,210.86,210.81,21.3844]
[1731319109607,17.66062909,210.85,210.81,26.1278]
[1731319110310,17.66062909,210.87,210.81,26.1278]
[1731319110511,17.66062909,210.89,210.82,41.43751309]
[1731319111505,17.66062909,210.89,210.83,4.7431]
[1731319111724,17.66062909,210.88,210.83,4.7431]
[1731319111925,17.66062909,210.88,210.83,16.6009]
[1731319113726,17.66062909,210.89,210.83,16.6009]
[1731319114029,0.82085445,211.0,210.95,162.6]
[1731319114331,17.66062909,211.0,210.91,23.776884]
[1731319114520,17.66062909,211.0,210.93,17.66062909]
[1731319114709,17.66062909,211.0,210.92,17.66062909]
[1731319115128,17.66062909,211.0,210.93,16.5931]
[1731319120712,17.66062909,210.98,210.93,16.5931]
[1731319121329,17.66062909,210.96,210.93,11.8522]
[1731319121534,17.66062909,210.94,210.89,16.5961]
[1731319122833,17.66062909,210.95,210.89,16.5961]
[1731319123136,17.66062909,210.96,210.89,34.25672909]
[1731319123321,17.66062909,210.97,210.89,34.25672909]
[1731319123515,17.66062909,210.92,210.87,4.7421]
[1731319123715,17.66062909,210.9,210.87,4.7421]
[1731319124416,17.66062909,210.92,210.87,16.5977]
[1731319124817,17.66062909,210.94,210.87,16.5977]
[1731319125241,6.1317,211.12,210.99,23.776884]
[1731319125442,17.66062909,211.09,211.02,17.66062909]
[1731319126027,17.66062909,211.08,211.02,23.776884]
[1731319126229,17.66062909,211.09,211.02,23.776884]
[1731319126426,17.66062909,211.12,211.04,17.66062909]
[1731319126629,33.01042909,211.2,211.04,17.66062909]
[1731319126630,17.66062909,211.14,211.07,17.66062909]
[1731319126830,33.01042909,211.2,211.04,23.776884]
[1731319126831,15.3498,211.2,211.08,17.66062909]
[1731319127034,17.66062909,211.15,211.08,17.66062909]
[1731319127233,17.66062909,211.14,211.08,23.776884]
[1731319127628,17.66062909,211.13,211.08,23.776884]
[1731319127843,17.66062909,211.13,211.07,23.776884]
[1731319128347,17.66062909,211.14,211.08,16.5813]
[1731319129323,17.66062909,211.15,211.08,16.5813]
[1731319129739,17.66062909,211.15,211.08,34.24192909]
[1731319129941,17.66062909,211.14,211.08,16.5813]
[1731319130143,17.66062909,211.17,211.1,17.66062909]
[1731319130530,17.66062909,211.18,211.11,17.66062909]
[1731319130734,17.66062909,211.17,211.1,17.66062909]
[1731319131041,17.66062909,211.17,211.11,17.66062909]
[1731319131240,17.66062909,211.17,211.1,22.39752909]
[1731319131426,17.66062909,211.16,211.09,17.66062909]
[1731319131741,17.66062909,211.16,211.09,22.39772909]
[1731319132452,4.7354,211.18,211.09,22.39772909]
[1731319132453,17.66062909,211.15,211.09,22.39772909]
[1731319132619,4.7354,211.18,211.09,22.39772909]
[1731319132620,17.66062909,211.16,211.09,22.39772909]
[1731319133919,17.66062909,211.17,211.1,17.66062909]
[1731319134540,22.39602909,211.18,211.11,17.66062909]
[1731319134839,17.66062909,211.17,211.11,17.66062909]
[1731319135151,15.3498,211.2,211.12,17.66062909]
[1731319135152,17.66062909,211.19,211.12,17.66062909]
[1731319135445,9.73342371,211.21,211.18,17.66062909]
[1731319135629,9.73342371,211.21,211.2,17.66062909]
[1731319136545,4.7331,211.28,211.2,17.66062909]
[1731319136731,167.66062909,211.29,211.22,17.66062909]
[1731319137128,154.7329,211.29,211.23,17.66062909]
[1731319137823,172.39352909,211.29,211.22,17.66062909]
[1731319138150,17.66062909,211.28,211.2,29.49772909]
[1731319138328,172.39352909,211.29,211.22,17.66062909]
[1731319138652,154.7329,211.29,211.23,17.66062909]
[1731319138825,150.0,211.29,211.26,17.66062909]
[1731319139242,150.0,211.29,211.25,17.66062909]
[1731319140740,150.0,211.29,211.24,17.66062909]
[1731319140925,17.66062909,211.27,211.2,34.23252909]
[1731319141126,17.66062909,211.23,211.2,16.5719]
[1731319141428,17.66062909,211.22,211.18,4.7351]
[1731319142240,17.66062909,211.22,211.15,17.66062909]
[1731319142547,17.66062909,211.22,211.16,16.575]
[1731319143226,17.66062909,211.21,211.16,16.575]
[1731319143430,17.66062909,211.2,211.16,16.575]
[1731319144038,4.7335,211.26,211.16,16.575]
[1731319144039,17.66062909,211.21,211.16,16.575]
[1731319144837,17.66062909,211.2,211.16,16.575]
[1731319145039,17.66062909,211.19,211.16,16.575]
[1731319145454,17.66062909,211.21,211.16,16.575]
[1731319146653,17.66062909,211.19,211.16,16.575]
[1731319147659,17.66062909,211.2,211.16,11.8393]
[1731319148044,17.66062909,211.22,211.16,11.8393]
[1731319148639,17.66062909,211.21,211.16,11.8393]
[1731319149349,17.66062909,211.2,211.16,11.8393]
[1731319149552,17.66062909,211.19,211.16,11.8393]
[1731319150354,17.66062909,211.2,211.16,11.8393]
[1731319150559,17.66062909,211.21,211.16,11.8393]
[1731319150856,17.66062909,211.22,211.16,11.8393]
[1731319151242,17.66062909,211.23,211.16,29.49992909]
[1731319151661,166.0159,211.29,211.14,21.5031]
[1731319151846,17.66062909,211.18,211.14,21.5031]
[1731319152050,17.66062909,211.23,211.16,17.66062909]
[1731319152244,17.66062909,211.25,211.17,17.66062909]
[1731319152438,17.66062909,211.24,211.17,17.66062909]
[1731319153539,17.66062909,211.24,211.18,4.7352]
[1731319154461,17.66062909,211.22,211.16,16.575]
[1731319155057,17.66062909,211.2,211.16,16.575]
[1731319155749,17.66062909,211.2,211.16,11.8393]
[1731319155965,17.66062909,211.17,211.14,19.94]
[1731319156137,4.7342,211.23,211.14,19.94]
[1731319156138,17.66062909,211.18,211.14,19.94]
[1731319156459,17.66062909,211.2,211.14,31.7804]
[1731319157151,17.66062909,211.23,211.16,17.66062909]
[1731319157461,17.66062909,211.23,211.16,41.43751309]
[1731319157847,17.66062909,211.23,211.17,16.5743]
[1731319158651,17.66062909,211.19,211.17,11.8388]
[1731319158964,17.66062909,211.19,211.17,16.5743]
[1731319159344,4.79987243,211.28,211.17,16.5743]
[1731319159345,17.66062909,211.21,211.17,16.5743]
[1731319159759,17.66062909,211.21,211.17,11.8388]
[1731319159951,17.66062909,211.23,211.17,11.8388]
[1731319160463,17.66062909,211.25,211.18,30.252784]
[1731319161044,17.66062909,211.25,211.18,47.91341309]
[1731319162067,17.66062909,211.25,211.19,16.5726]
[1731319162244,17.66062909,211.25,211.2,23.776884]
[1731319162449,17.66062909,211.27,211.2,41.43751309]
[1731319164243,17.66062909,211.25,211.21,16.5711]
[1731319164540,17.66062909,211.22,211.21,40.347984]
[1731319164746,17.66062909,211.22,211.21,16.5711]
[1731319165255,17.66062909,211.22,211.21,11.8365]
[1731319166150,17.66062909,211.22,211.18,4.7351]
[1731319166349,17.66062909,211.21,211.16,11.8391]
[1731319167765,17.66062909,211.2,211.16,11.8391]
[1731319168071,17.66062909,211.19,211.16,11.8391]
[1731319169459,17.66062909,211.2,211.16,11.8391]
[1731319169845,17.66062909,211.17,211.16,11.8391]
[1731319171062,17.66062909,211.17,211.11,16.5782]
[1731319171369,17.66062909,211.15,211.11,16.5782]
[1731319172273,17.66062909,211.13,211.11,11.8416]
[1731319172449,17.66062909,211.13,211.09,20.5817]
[1731319173964,17.66062909,211.11,211.06,11.8446]
[1731319174156,17.66062909,211.08,211.06,16.5825]
[1731319174351,17.66062909,211.11,211.06,16.5825]
[1731319174547,17.66062909,211.1,211.06,16.5825]
[1731319174752,6.1081,211.18,211.06,34.24312909]
[1731319174962,4.7352,211.19,211.06,34.24312909]
[1731319175165,17.66062909,211.13,211.06,34.24312909]
[1731319175369,17.66062909,211.12,211.06,16.5825]
[1731319175673,17.66062909,211.13,211.07,23.776884]
[1731319176367,17.66062909,211.13,211.08,16.5813]
[1731319176978,17.66062909,211.14,211.08,16.5813]
[1731319177155,17.66062909,211.12,211.08,16.5813]
[1731319177365,17.66062909,211.13,211.08,16.5813]
[1731319178859,17.66062909,211.14,211.08,16.5813]
[1731319179877,17.66062909,211.12,211.08,16.5813]
[1731319180169,4.7353,211.18,211.08,16.5813]
[1731319180170,17.66062909,211.14,211.08,16.5813]
[1731319182481,17.66062909,211.2,211.08,16.5813]
[1731319182658,17.66062909,211.14,211.08,16.5813]
[1731319183055,17.66062909,211.1,211.08,11.8438]
[1731319183467,17.66062909,211.1,211.08,16.5813]
[1731319184072,17.66062909,211.1,211.08,11.8438]
[1731319185758,17.66062909,211.13,211.05,17.66062909]
[1731319186075,20.6576,211.21,211.07,17.66062909]
[1731319186262,17.66062909,211.16,211.09,33.69422909]
[1731319186458,17.66062909,211.15,211.09,16.0336]
[1731319186959,17.66062909,211.14,211.09,16.0336]
[1731319187560,17.66062909,211.2,211.09,16.0336]
[1731319187561,17.66062909,211.15,211.1,16.5797]
[1731319187763,15.9229,211.21,211.1,16.5797]
[1731319187764,17.66062909,211.16,211.1,16.5797]
[1731319191375,17.66062909,211.18,211.1,34.24032909]
[1731319194160,17.66062909,211.13,211.12,11.8416]
[1731319194485,17.66062909,211.13,211.1,4.737]
[1731319194780,11.27464707,211.12,211.1,4.737]
[1731319195575,11.27464707,211.14,211.1,4.737]
[1731319196881,17.61335794,211.13,211.1,4.737]
[1731319197268,17.61335794,211.12,211.1,4.737]
[1731319197480,17.61335794,211.13,211.1,4.737]
[1731319199386,17.61335794,211.12,211.1,4.737]
[1731319200165,17.61335794,211.13,211.1,4.737]
[1731319200361,17.61335794,211.14,211.1,4.737]
[1731319200582,17.61335794,211.15,211.1,4.737]
[1731319200765,17.61335794,211.14,211.1,4.737]
[1731319200971,17.61335794,211.13,211.1,4.737]
[1731319201263,17.61335794,211.12,211.1,4.737]
[1731319202070,17.61335794,211.14,211.1,4.737]
[1731319203485,17.61335794,211.12,211.1,4.737]
[1731319204393,17.61335794,211.13,211.1,4.737]
[1731319204719,17.61335794,211.14,211.1,4.737]
[1731319204886,17.61335794,211.14,211.09,11.8432]
[1731319205391,17.61335794,211.16,211.1,23.776884]
[1731319205568,17.61335794,211.2,211.13,17.61335794]
[1731319205773,17.61335794,211.22,211.15,17.61335794]
[1731319205984,17.61335794,211.21,211.14,41.39024194]
[1731319206362,4.7334,211.27,211.14,41.39024194]
[1731319206363,17.61335794,211.2,211.14,23.776884]
[1731319206770,17.61335794,211.2,211.15,16.5758]
[1731319207066,17.61335794,211.22,211.16,23.776884]
[1731319207989,17.61335794,211.22,211.15,16.5758]
[1731319208294,17.61335794,211.2,211.15,40.2556]
[1731319209483,17.61335794,211.21,211.15,40.2556]
[1731319210086,17.61335794,211.2,211.15,40.2556]
[1731319211892,17.61335794,211.21,211.15,40.2556]
[1731319212277,17.61335794,211.19,211.15,40.2556]
[1731319212495,17.61335794,211.18,211.15,40.2556]
[1731319212680,4.733,211.28,211.15,40.2556]
[1731319212681,17.61335794,211.17,211.15,40.2556]
[1731319212988,17.61335794,211.17,211.13,15.4139]
[1731319212989,17.61335794,211.16,211.13,4.7362]
[1731319213195,17.61335794,211.15,211.13,4.7362]
[1731319213874,17.61335794,211.16,211.13,4.7362]
[1731319214173,17.61335794,211.2,211.12,17.61335794]
[1731319214477,17.61335794,211.22,211.15,17.61335794]
[1731319215175,4.7334,211.27,211.15,23.776884]
[1731319215176,17.61335794,211.21,211.15,23.776884]
[1731319215878,17.61335794,211.21,211.16,16.575]
[1731319216600,160.8919,211.29,211.16,16.575]
[1731319216788,17.61335794,211.23,211.17,23.776884]
[1731319216996,150.0,211.29,211.18,17.61335794]
[1731319217179,17.61335794,211.28,211.2,41.39024194]
[1731319217376,17.61335794,211.27,211.2,23.776884]
[1731319217590,17.61335794,211.28,211.21,17.61335794]
[1731319217879,17.61335794,211.28,211.23,16.5695]
[1731319218386,17.61335794,211.26,211.23,16.5695]
[1731319218688,17.61335794,211.24,211.17,11.8384]
[1731319218873,17.61335794,211.21,211.17,11.8384]
[1731319219193,150.0,211.29,211.17,11.8384]
[1731319220301,17.61335794,211.26,211.2,23.776884]
[1731319220495,17.61335794,211.25,211.18,41.39024194]